bitfinex-derivatives/quotes_BTCF0:USTF0_20250508
["timestamp","ask_amount","ask_price","bid_price","bid_amount"]
[1746694657490,0.7630751,99758.0,99757.0,0.0001]
[1746694658799,0.7640751,99758.0,99757.0,0.0001]
[1746694659001,0.7650751,99758.0,99757.0,0.0001]
[1746694659402,0.7670751,99758.0,99757.0,0.0001]
[1746694659893,0.7640751,99758.0,99757.0,0.0001]
[1746694660096,0.7670751,99758.0,99757.0,0.0001]
[1746694660694,0.7680751,99758.0,99757.0,0.0001]
[1746694661490,0.0501217,99753.0,99748.0,0.15244696]
[1746694661694,0.1116218,99752.0,99749.0,0.0301]
[1746694661902,0.3608,99750.0,99749.0,0.0301]
[1746694662102,0.5612912,99750.0,99749.0,0.0301]
[1746694663396,0.5632912,99750.0,99749.0,0.0301]
[1746694664502,0.6263912,99750.0,99749.0,0.0301]
[1746694664899,0.2004952,99748.0,99747.0,0.15244696]
[1746694665897,0.2014952,99748.0,99747.0,0.15244696]
[1746694666605,0.2005032,99744.0,99743.0,0.0326]
[1746694667197,0.3685032,99744.0,99743.0,0.0326]
[1746694667697,0.3685032,99744.0,99743.0,0.0336]
[1746694668601,0.8695032,99744.0,99743.0,0.0336]
[1746694669202,0.8695032,99744.0,99743.0,0.001]
[1746694671007,0.8695032,99744.0,99743.0,0.0342]
[1746694675403,0.8695032,99744.0,99743.0,0.001]
[1746694676008,0.8695032,99744.0,99743.0,0.0338]
[1746694680215,0.7015032,99744.0,99743.0,0.0338]
[1746694684711,0.7015032,99744.0,99743.0,0.0646]
[1746694684913,0.7015032,99744.0,99743.0,0.0949]
[1746694686519,0.7025032,99744.0,99743.0,0.0939]
[1746694686907,0.7025032,99744.0,99743.0,0.2944052]
[1746694687312,0.7035032,99744.0,99743.0,0.2944052]
[1746694687619,0.7035032,99744.0,99743.0,0.0939]
[1746694687916,0.7035032,99744.0,99743.0,0.2944052]
[1746694688320,0.7015032,99744.0,99743.0,0.0939]
[1746694688516,0.7035032,99744.0,99743.0,0.2944052]
[1746694689011,0.7025032,99744.0,99743.0,0.2944052]
[1746694690515,0.2005032,99744.0,99743.0,0.2944052]
[1746694690816,0.2015032,99744.0,99743.0,0.2944052]
[1746694691021,0.001,99744.0,99743.0,0.2944052]
[1746694691215,0.2005003,99750.0,99749.0,0.2506028]
[1746694691416,0.2005003,99750.0,99749.0,0.3137028]
[1746694691720,0.7005003,99750.0,99749.0,0.3137028]
[1746694692420,0.7015003,99750.0,99749.0,0.3137028]
[1746694692622,0.7035003,99750.0,99749.0,0.3137028]
[1746694695417,0.2035003,99750.0,99749.0,0.3137028]
[1746694700820,0.2015003,99750.0,99749.0,0.3137028]
[1746694701026,0.2025003,99750.0,99749.0,0.3137028]
[1746694701318,0.2015003,99750.0,99749.0,0.3147028]
[1746694701519,0.2015003,99750.0,99749.0,0.3247028]
[1746694701721,0.2015003,99750.0,99749.0,0.3147028]
[1746694701920,0.2005003,99750.0,99749.0,0.3147028]
[1746694702420,0.2015003,99750.0,99749.0,0.3147028]
[1746694704023,0.2015003,99750.0,99749.0,0.3247028]
[1746694704421,0.2005003,99750.0,99749.0,0.3147028]
[1746694704632,0.2015003,99750.0,99749.0,0.3257028]
[1746694704817,0.2015003,99750.0,99749.0,0.3657028]
[1746694705925,0.2015003,99750.0,99749.0,0.3257028]
[1746694706224,0.2015003,99750.0,99749.0,0.3247028]
[1746694706424,0.2015003,99750.0,99749.0,0.3257028]
[1746694707121,0.2005003,99750.0,99749.0,0.3247028]
[1746694707321,0.2015003,99750.0,99749.0,0.3257028]
[1746694709027,0.2015003,99750.0,99749.0,0.3657028]
[1746694709426,0.2015003,99750.0,99749.0,0.3257028]
[1746694709827,0.2015003,99750.0,99749.0,0.3657028]
[1746694710127,0.2015003,99750.0,99749.0,0.3257028]
[1746694710626,0.2015003,99750.0,99749.0,0.3757028]
[1746694710827,0.2015003,99750.0,99749.0,0.3157028]
[1746694711028,0.2015003,99750.0,99749.0,0.3457028]
[1746694711224,0.2015003,99750.0,99749.0,0.3157028]
[1746694713331,0.001,99750.0,99749.0,0.3157028]
[1746694714128,0.2014912,99750.0,99749.0,0.3157028]
[1746694715234,0.2014912,99750.0,99749.0,0.3257028]
[1746694715734,0.2014912,99750.0,99749.0,0.3157028]
[1746694716535,0.001,99750.0,99749.0,0.3157028]
[1746694717032,0.2004429,99778.0,99777.0,0.2505417]
[1746694717237,0.2319429,99778.0,99777.0,0.2505417]
[1746694717437,0.2319429,99778.0,99777.0,0.2004329]
[1746694718337,0.2379429,99778.0,99777.0,0.2004329]
[1746694718637,0.2708429,99778.0,99777.0,0.2004329]
[1746694720530,0.250553,99776.0,99775.0,0.2004398]
[1746694721741,0.252553,99776.0,99775.0,0.2004398]
[1746694721932,0.255553,99776.0,99775.0,0.2014398]
[1746694728044,0.255553,99776.0,99775.0,0.001]
[1746694729646,0.255553,99776.0,99775.0,0.2014409]
[1746694731746,0.255553,99776.0,99775.0,0.001]
[1746694733150,0.423553,99776.0,99775.0,0.001]
[1746694733648,0.456353,99776.0,99775.0,0.001]
[1746694733942,0.456353,99776.0,99775.0,0.2014409]
[1746694734149,0.456353,99776.0,99775.0,0.001]
[1746694735150,0.456353,99776.0,99775.0,0.2014409]
[1746694737246,0.288353,99776.0,99775.0,0.2014409]
[1746694740745,0.288353,99776.0,99775.0,0.001]
[1746694742146,0.456353,99776.0,99775.0,0.001]
[1746694743155,0.288353,99776.0,99775.0,0.001]
[1746694744053,0.788353,99776.0,99775.0,0.001]
[1746694744255,0.956353,99776.0,99775.0,0.001]
[1746694747257,1.0666,99776.0,99744.0,0.3608]
[1746694747553,0.2004992,99746.0,99745.0,0.20326261]
[1746694747758,0.2004992,99746.0,99745.0,0.40376381]
[1746694748153,0.0501241,99748.0,99747.0,0.2004952]
[1746694748353,0.2506233,99748.0,99747.0,0.2004952]
[1746694748549,0.2832233,99748.0,99747.0,0.2613952]
[1746694749959,0.2842233,99748.0,99747.0,0.2633952]
[1746694750960,0.2862233,99748.0,99747.0,0.2663952]
[1746694751155,0.2536233,99748.0,99747.0,0.2663952]
[1746694751555,0.2536233,99748.0,99747.0,0.2633952]
[1746694752852,0.2526233,99748.0,99747.0,0.2623952]
[1746694753662,0.2506233,99748.0,99747.0,0.2613952]
[1746694753863,0.2526233,99748.0,99747.0,0.2623952]
[1746694754463,0.2526233,99748.0,99747.0,0.0619]
[1746694755165,0.2526233,99748.0,99747.0,0.0313]
[1746694755567,0.2841233,99748.0,99747.0,0.0313]
[1746694756165,0.4521233,99748.0,99747.0,0.0313]
[1746694756559,0.4531233,99748.0,99747.0,0.0313]
[1746694757261,0.4541233,99748.0,99747.0,0.0313]
[1746694757965,0.4551233,99748.0,99747.0,0.0313]
[1746694763965,0.9551233,99748.0,99747.0,0.0313]
[1746694766270,0.9551233,99748.0,99747.0,0.001]
[1746694767864,0.9551233,99748.0,99738.0,0.0315]
[1746694767865,0.2005133,99739.0,99738.0,0.0315]
[1746694768068,0.2105133,99739.0,99738.0,0.0315]
[1746694769080,0.3785133,99739.0,99738.0,0.0315]
[1746694769277,0.3805133,99739.0,99738.0,0.0315]
[1746694775981,0.3705133,99739.0,99738.0,0.0315]
[1746694776183,0.002,99739.0,99738.0,0.2320153]
[1746694776584,0.002,99739.0,99738.0,0.2626153]
[1746694776783,0.2005133,99739.0,99738.0,0.3127437]
[1746694776987,0.2035133,99739.0,99738.0,0.3127437]
[1746694777181,0.2035133,99739.0,99738.0,0.2626153]
[1746694777381,0.2055133,99739.0,99738.0,0.2626153]
[1746694777582,0.2055133,99739.0,99738.0,0.0621]
[1746694777881,0.2155133,99739.0,99738.0,0.0621]
[1746694778877,0.2145133,99739.0,99738.0,0.0621]
[1746694779486,0.2145133,99739.0,99738.0,0.2626153]
[1746694780582,0.2145133,99739.0,99738.0,0.41519111]
[1746694781786,0.2145133,99739.0,99738.0,0.21467581]
[1746694782586,0.2145133,99739.0,99738.0,0.41519111]
[1746694785687,0.2145133,99739.0,99738.0,0.2626153]
[1746694786487,0.2145133,99739.0,99738.0,0.0621]
[1746694786687,0.2145133,99739.0,99738.0,0.2626153]
[1746694796097,0.2145133,99739.0,99738.0,0.6234153]
[1746694797093,0.2445133,99739.0,99738.0,0.6234153]
[1746694797898,0.2445133,99739.0,99738.0,0.2626153]
[1746694798198,0.2445133,99739.0,99738.0,0.6234153]
[1746694800898,0.2145133,99739.0,99738.0,0.6234153]
[1746694801094,0.0328,99746.0,99738.0,0.6234153]
[1746694801095,0.0325,99749.0,99744.0,0.3007449]
[1746694801300,0.2004992,99747.0,99746.0,0.2506105]
[1746694801493,0.2004992,99747.0,99746.0,0.6724105]
[1746694801902,0.7004992,99747.0,99746.0,0.6724105]
[1746694802505,0.7054992,99747.0,99746.0,0.6724105]
[1746694802904,0.7054992,99747.0,99746.0,0.68772846]
[1746694803306,0.7084992,99747.0,99746.0,0.68772846]
[1746694804013,0.4897,99747.0,99746.0,0.79798445]
[1746694804208,0.4897,99747.0,99746.0,0.84266649]
[1746694805013,0.008,99747.0,99746.0,0.84266649]
[1746694805215,0.2004821,99755.0,99754.0,0.2004831]
[1746694805517,0.0501157,99765.0,99764.0,0.2505744]
[1746694805708,0.0501121,99772.0,99769.0,0.0501128]
[1746694806006,0.200449,99772.0,99771.0,0.2505568]
[1746694806615,0.200449,99772.0,99771.0,0.3161568]
[1746694808518,0.202449,99772.0,99771.0,0.3161568]
[1746694808719,0.205449,99772.0,99771.0,0.3171568]
[1746694811514,0.237049,99772.0,99771.0,0.3171568]
[1746694815117,0.237049,99772.0,99771.0,0.0338]
[1746694815421,0.200461,99765.0,99764.0,0.3608]
[1746694815719,0.210461,99765.0,99764.0,0.3608]
[1746694816220,0.378461,99765.0,99764.0,0.3608]
[1746694816407,0.944461,99765.0,99764.0,0.3608]
[1746694817012,0.946461,99765.0,99764.0,0.3618]
[1746694818214,0.779461,99765.0,99764.0,0.3618]
[1746694820531,0.779461,99765.0,99764.0,0.562263]
[1746694820717,0.769461,99765.0,99764.0,0.562263]
[1746694821317,0.769461,99765.0,99764.0,0.592863]
[1746694823029,0.769461,99765.0,99764.0,0.562263]
[1746694823827,0.769461,99765.0,99764.0,0.626663]
[1746694826925,0.769461,99765.0,99764.0,0.4262]
[1746694827130,0.769461,99765.0,99764.0,0.594063]
[1746694831137,0.769461,99765.0,99764.0,0.3936]
[1746694831633,0.769461,99765.0,99764.0,0.3618]
[1746694832237,0.937461,99765.0,99764.0,0.3618]
[1746694832735,0.937461,99765.0,99764.0,0.001]
[1746694839339,0.2004932,99749.0,99741.0,0.0501269]
[1746694839541,0.2004932,99749.0,99746.0,0.032]
[1746694840133,0.2613932,99749.0,99746.0,0.032]
[1746694840738,0.2613932,99749.0,99748.0,0.5632952]
[1746694841236,0.4303932,99749.0,99748.0,0.5652952]
[1746694842642,0.4303932,99749.0,99748.0,0.58047839]
[1746694843045,0.4303932,99749.0,99748.0,0.5652952]
[1746694843233,0.4303932,99749.0,99748.0,0.5969952]
[1746694845341,0.2623932,99749.0,99748.0,0.5969952]
[1746694847845,0.2623932,99749.0,99748.0,0.3965]
[1746694849236,0.4303932,99749.0,99748.0,0.3965]
[1746694851538,0.4303932,99749.0,99748.0,0.3648]
[1746694852949,0.4303932,99749.0,99748.0,0.004]
[1746694853253,0.2005213,99735.0,99734.0,0.15214252]
[1746694853455,0.5613213,99735.0,99734.0,0.15214252]
[1746694853847,0.5613213,99735.0,99734.0,0.16752114]
[1746694854153,0.7947213,99735.0,99734.0,0.16752114]
[1746694854550,0.7957213,99735.0,99734.0,0.16852114]
[1746694854750,0.8057213,99735.0,99734.0,0.16852114]
[1746694855258,0.8057213,99735.0,99734.0,0.17052114]
[1746694855450,1.3057213,99735.0,99734.0,0.17052114]
[1746694857861,1.4059893,99735.0,99734.0,0.01837862]
[1746694858059,0.2005354,99728.0,99727.0,0.20326261]
[1746694858250,0.2105354,99728.0,99727.0,0.20326261]
[1746694859155,0.4414354,99728.0,99727.0,0.20326261]
[1746694859357,0.2005535,99719.0,99718.0,0.25383145]
[1746694859553,0.5713535,99719.0,99718.0,0.25383145]
[1746694860147,0.8041535,99719.0,99718.0,0.25383145]
[1746694860551,0.8121535,99719.0,99718.0,0.28403145]
[1746694861159,0.8191535,99719.0,99718.0,0.28503145]
[1746694861351,1.3191535,99719.0,99718.0,0.28503145]
[1746694867773,0.8935535,99719.0,99718.0,0.28503145]
[1746694867976,0.8935535,99719.0,99718.0,0.31713145]
[1746694868271,0.7255535,99719.0,99718.0,0.31713145]
[1746694869273,0.7255535,99719.0,99718.0,0.0633]
[1746694871566,0.7255535,99719.0,99718.0,0.0312]
[1746694871760,0.2005676,99712.0,99711.0,0.0332]
[1746694871965,0.2105676,99712.0,99711.0,0.0332]
[1746694872770,0.7105676,99712.0,99711.0,0.0332]
[1746694873782,0.2005696,99711.0,99710.0,0.01]
[1746694873983,0.2715696,99711.0,99710.0,0.01]
[1746694875474,0.7715696,99711.0,99710.0,0.01]
[1746694876178,1.1323696,99711.0,99710.0,0.01]
[1746694876777,1.1443696,99711.0,99710.0,0.011]
[1746694879086,1.1141696,99711.0,99710.0,0.011]
[1746694892592,0.7533696,99711.0,99710.0,0.011]
[1746694892792,0.7225696,99711.0,99710.0,0.011]
[1746694893294,0.7125696,99711.0,99710.0,0.011]
[1746694893490,0.7225696,99711.0,99710.0,0.011]
[1746694898694,0.522,99711.0,99710.0,0.3118636]
[1746694898900,0.512,99711.0,99710.0,0.6418636]
[1746694899091,0.09459886,99711.0,99710.0,1.0595636]
[1746694899291,0.01986886,99714.0,99713.0,0.2005656]
[1746694899493,0.03017,99718.0,99713.0,0.2005656]
[1746694899494,0.03017,99718.0,99715.0,0.2005595]
[1746694899794,0.2005575,99717.0,99716.0,0.2327595]
[1746694900099,0.2105575,99717.0,99716.0,0.2327595]
[1746694900287,0.2005575,99717.0,99716.0,0.2327595]
[1746694900690,0.2105575,99717.0,99716.0,0.2327595]
[1746694901099,0.2005575,99717.0,99716.0,0.2327595]
[1746694901301,0.2015575,99717.0,99716.0,0.2367595]
[1746694902500,0.2015575,99717.0,99716.0,0.2397595]
[1746694903000,0.2015575,99717.0,99716.0,0.2729595]
[1746694903198,0.001,99717.0,99716.0,0.3732435]
[1746694903700,0.001,99717.0,99716.0,0.4332435]
[1746694904492,0.001,99717.0,99716.0,0.8509435]
[1746694904698,0.2015575,99717.0,99716.0,0.8509435]
[1746694904898,0.2015575,99717.0,99716.0,0.610384]
[1746694905104,0.2115575,99717.0,99716.0,0.590384]
[1746694905404,0.2115575,99717.0,99716.0,0.4901]
[1746694906005,0.2015575,99717.0,99716.0,0.4901]
[1746694906610,0.2015575,99717.0,99716.0,0.6906595]
[1746694907603,0.2015575,99717.0,99716.0,0.2729595]
[1746694908107,0.2115575,99717.0,99716.0,0.2729595]
[1746694914610,0.2005696,99711.0,99691.0,0.4177]
[1746694914806,0.2005897,99701.0,99699.0,0.2005924]
[1746694915012,0.4111697,99701.0,99700.0,0.3005917]
[1746694915606,0.4742697,99701.0,99700.0,0.3005917]
[1746694916013,0.4742697,99701.0,99700.0,0.1]
[1746694916408,0.4742697,99701.0,99700.0,0.3005917]
[1746694916708,0.4792697,99701.0,99700.0,0.3005917]
[1746694916905,0.4476697,99701.0,99700.0,0.3005917]
[1746694917313,0.4526697,99701.0,99700.0,0.3005917]
[1746694917612,0.4526697,99701.0,99700.0,0.3317917]
[1746694919106,0.25208,99701.0,99700.0,0.3317917]
[1746694919909,0.4526697,99701.0,99700.0,0.3317917]
[1746694920410,0.2520897,99701.0,99700.0,0.3317917]
[1746694921510,0.01,99701.0,99700.0,0.43209169]
[1746694922311,0.2105897,99701.0,99700.0,0.43209169]
[1746694924720,0.01,99701.0,99700.0,0.43209169]
[1746694924911,0.2105897,99701.0,99700.0,0.43209169]
[1746694925922,0.01,99701.0,99700.0,0.43209169]
[1746694926511,0.2105897,99701.0,99700.0,0.43209169]
[1746694926717,0.2410897,99701.0,99700.0,0.43209169]
[1746694928025,0.0405,99701.0,99700.0,0.43209169]
[1746694928615,0.0405,99701.0,99700.0,0.3317917]
[1746694930524,0.2410897,99701.0,99700.0,0.3317917]
[1746694932724,0.0405,99701.0,99700.0,0.3317917]
[1746694932929,0.2410897,99701.0,99700.0,0.3317917]
[1746694935331,0.0405,99701.0,99700.0,0.3317917]
[1746694935631,0.2410897,99701.0,99700.0,0.3317917]
[1746694936729,0.0405,99701.0,99700.0,0.3317917]
[1746694937424,0.0355,99701.0,99700.0,0.3327917]
[1746694937925,0.0315,99701.0,99700.0,0.3337917]
[1746694938830,0.2320897,99701.0,99700.0,0.3337917]
[1746694939528,0.4326697,99701.0,99700.0,0.3337917]
[1746694939735,0.4326697,99701.0,99700.0,0.3025917]
[1746694940831,0.23208,99701.0,99700.0,0.3025917]
[1746694941032,0.4326697,99701.0,99700.0,0.3025917]
[1746694943932,0.4426697,99701.0,99700.0,0.3025917]
[1746694945434,0.24208,99701.0,99700.0,0.3025917]
[1746694945932,0.4426697,99701.0,99700.0,0.3025917]
[1746694946233,0.4748697,99701.0,99700.0,0.3025917]
[1746694951032,0.4648697,99701.0,99700.0,0.3025917]
[1746694954633,0.23208,99701.0,99700.0,0.3025917]
[1746694954834,0.0315,99701.0,99700.0,0.3025917]
[1746694955240,0.0315,99701.0,99700.0,0.3328917]
[1746694955636,0.0315,99701.0,99700.0,0.3628917]
[1746694956238,0.0315,99701.0,99700.0,0.3935917]
[1746694956432,0.0315,99701.0,99700.0,0.4335917]
[1746694956639,0.0315,99701.0,99700.0,0.53389169]
[1746694958346,0.0315,99701.0,99700.0,0.43319169]
[1746694958533,0.0315,99701.0,99700.0,0.3328917]
[1746694959741,0.24208,99701.0,99700.0,0.3025917]
[1746694961343,0.27378,99701.0,99700.0,0.3025917]
[1746694961546,0.4743697,99701.0,99700.0,0.3025917]
[1746694961842,0.27378,99701.0,99700.0,0.3025917]
[1746694963247,0.0315,99701.0,99700.0,0.3025917]
[1746694963439,0.0315,99701.0,99700.0,0.3346917]
[1746694966247,0.0315,99701.0,99700.0,0.3025917]
[1746694967343,0.23208,99701.0,99700.0,0.3025917]
[1746694967851,0.4426697,99701.0,99700.0,0.3025917]
[1746694975252,0.4426697,99701.0,99700.0,0.3015917]
[1746694975458,0.4426697,99701.0,99700.0,0.3025917]
[1746694975755,0.4426697,99701.0,99700.0,0.3015917]
[1746694977149,0.6106697,99701.0,99700.0,0.3015917]
[1746694977549,0.41008,99701.0,99700.0,0.3015917]
[1746694977953,0.6106697,99701.0,99700.0,0.3005917]
[1746694978154,0.4426697,99701.0,99700.0,0.3005917]
[1746694978556,0.4416697,99701.0,99700.0,0.3005917]
[1746694978856,0.4436697,99701.0,99700.0,0.3340917]
[1746694979551,0.4416697,99701.0,99700.0,0.3340917]
[1746694979745,0.4426697,99701.0,99700.0,0.3340917]
[1746694981160,0.4426697,99701.0,99700.0,0.3350917]
[1746694981761,0.4416697,99701.0,99700.0,0.3350917]
[1746694982059,0.4426697,99701.0,99700.0,0.3350917]
[1746694982761,0.4727697,99701.0,99700.0,0.3350917]
[1746694983962,0.4727697,99701.0,99700.0,0.3025917]
[1746694984460,0.4727697,99701.0,99700.0,0.3015917]
[1746694985161,0.4727697,99701.0,99700.0,0.3005917]
[1746694985362,0.4717697,99701.0,99700.0,0.3015917]
[1746694985563,0.4727697,99701.0,99700.0,0.3015917]
[1746694986567,0.4717697,99701.0,99700.0,0.3015917]
[1746694986765,0.4727697,99701.0,99700.0,0.3005917]
[1746694986966,0.4727697,99701.0,99700.0,0.3015917]
[1746694987567,0.4727697,99701.0,99700.0,0.3005917]
[1746694987754,0.4727697,99701.0,99700.0,0.3015917]
[1746694988363,0.4727697,99701.0,99700.0,0.3005917]
[1746694988667,0.4717697,99701.0,99700.0,0.3015917]
[1746694988863,0.4727697,99701.0,99700.0,0.3015917]
[1746694989575,0.4737697,99701.0,99700.0,0.3015917]
[1746694989966,0.4717697,99701.0,99700.0,0.3005917]
[1746694990167,0.4737697,99701.0,99700.0,0.3005917]
[1746694992266,0.6417697,99701.0,99700.0,0.3005917]
[1746694993277,0.6397697,99701.0,99700.0,0.3005917]
[1746694993473,0.6417697,99701.0,99700.0,0.3005917]
[1746694996074,0.6397697,99701.0,99700.0,0.3005917]
[1746694996275,0.6417697,99701.0,99700.0,0.3005917]
[1746694998170,0.4717697,99701.0,99700.0,0.3005917]
[1746694998369,0.4737697,99701.0,99700.0,0.3005917]
[1746694999280,0.6417697,99701.0,99700.0,0.3005917]
[1746694999876,0.6407697,99701.0,99700.0,0.3015917]
[1746695000578,0.6407697,99701.0,99700.0,0.3005917]
[1746695002177,0.6407697,99701.0,99700.0,0.3015917]
[1746695002573,0.6417697,99701.0,99700.0,0.3015917]
[1746695003181,0.6407697,99701.0,99700.0,0.3015917]
[1746695004171,0.4727697,99701.0,99700.0,0.3323917]
[1746695007076,0.4727697,99701.0,99700.0,0.3015917]
[1746695008182,0.4727697,99701.0,99700.0,0.3005917]
[1746695008374,0.4727697,99701.0,99700.0,0.3015917]
[1746695008781,0.4717697,99701.0,99700.0,0.3015917]
[1746695008978,0.4727697,99701.0,99700.0,0.3005917]
[1746695009482,0.4737697,99701.0,99700.0,0.3005917]
[1746695014388,0.4737697,99701.0,99700.0,0.1]
[1746695015087,0.4747697,99701.0,99700.0,0.1]
[1746695015277,0.6427697,99701.0,99700.0,0.1]
[1746695016085,0.6427697,99701.0,99700.0,0.3005917]
[1746695016586,0.6126697,99701.0,99700.0,0.3005917]
[1746695016786,0.6126697,99701.0,99700.0,0.3637917]
[1746695017177,0.4446697,99701.0,99700.0,0.3637917]
[1746695019891,0.44397313,99701.0,99700.0,0.3637917]
[1746695030503,0.4364037,99701.0,99700.0,0.3637917]
[1746695031403,0.42897399,99701.0,99700.0,0.3637917]
[1746695036109,0.46087399,99701.0,99700.0,0.3324917]
[1746695041913,0.22839399,99701.0,99700.0,0.3324917]
[1746695043212,0.26059399,99701.0,99700.0,0.3324917]
[1746695044116,0.26059399,99701.0,99700.0,0.3005917]
[1746695044613,0.26059399,99701.0,99700.0,0.1]
[1746695044809,0.46117399,99701.0,99700.0,0.1]
[1746695045014,0.2005998,99696.0,99695.0,0.00100305]
[1746695045207,0.4111798,99696.0,99695.0,0.00100305]
[1746695045814,0.4435798,99696.0,99695.0,0.00100305]
[1746695046313,0.6115798,99696.0,99695.0,0.20260485]
[1746695047615,0.6125798,99696.0,99695.0,0.20260485]
[1746695048916,0.6125798,99696.0,99695.0,0.00200305]
[1746695050710,0.6125798,99696.0,99695.0,0.20260485]
[1746695051113,0.6125798,99696.0,99695.0,0.00200305]
[1746695052507,0.6125798,99696.0,99695.0,0.20260485]
[1746695055320,0.3795998,99696.0,99695.0,0.56340485]
[1746695055517,0.179,99696.0,99695.0,0.56340485]
[1746695055916,0.2106,99696.0,99695.0,0.62580485]
[1746695056112,0.2431998,99696.0,99695.0,0.39470305]
[1746695056423,0.2740998,99696.0,99695.0,0.59530485]
[1746695056815,0.2740998,99696.0,99695.0,0.39470305]
[1746695057125,0.2740998,99696.0,99695.0,0.59530485]
[1746695057422,0.2740998,99696.0,99695.0,0.56340485]
[1746695058025,0.4746798,99696.0,99695.0,0.36280305]
[1746695058223,0.4756798,99696.0,99695.0,0.36280305]
[1746695058521,0.4756798,99696.0,99695.0,0.36180305]
[1746695058717,0.4736798,99696.0,99695.0,0.36180305]
[1746695058924,0.4736798,99696.0,99695.0,0.56240485]
[1746695058925,0.4756798,99696.0,99695.0,0.56240485]
[1746695059222,0.6436798,99696.0,99695.0,0.36180305]
[1746695059417,0.6436798,99696.0,99695.0,0.56240485]
[1746695059923,0.6436798,99696.0,99695.0,0.36180305]
[1746695060310,0.6426798,99696.0,99695.0,0.36180305]
[1746695060515,0.6446798,99696.0,99690.0,0.01]
[1746695060712,0.2006098,99691.0,99690.0,0.01]
[1746695060917,0.4111898,99691.0,99690.0,0.01]
[1746695061115,0.5791898,99691.0,99690.0,0.01]
[1746695061316,0.2006219,99685.0,99684.0,0.51404247]
[1746695061521,0.4112019,99685.0,99684.0,0.15324247]
[1746695062121,0.6406019,99685.0,99684.0,0.15324247]
[1746695062714,0.2006259,99683.0,99682.0,0.20213178]
[1746695062916,0.2106259,99683.0,99682.0,0.20213178]
[1746695063417,0.3786259,99683.0,99682.0,0.00150478]
[1746695063621,0.5792059,99683.0,99682.0,0.00150478]
[1746695064223,0.200636,99678.0,99675.0,0.15324247]
[1746695064413,0.210636,99678.0,99675.0,0.15324247]
[1746695064620,0.210636,99678.0,99675.0,0.35388407]
[1746695064822,1.07344,99678.0,99675.0,0.15324247]
[1746695065017,1.43424,99678.0,99675.0,0.15324247]
[1746695065220,0.2508219,99669.0,99668.0,0.2006555]
[1746695065422,0.2006803,99656.0,99655.0,0.55532303]
[1746695065717,0.2106803,99656.0,99655.0,0.55532303]
[1746695066118,0.3786803,99656.0,99655.0,0.2508447]
[1746695066631,0.3786803,99656.0,99655.0,0.2493447]
[1746695067020,0.3786803,99656.0,99655.0,0.2503447]
[1746695067531,0.3806803,99656.0,99655.0,0.2503447]
[1746695067829,0.3806803,99656.0,99655.0,0.2493447]
[1746695068426,0.3806803,99656.0,99655.0,0.2006742]
[1746695068830,0.37917552,99656.0,99655.0,0.2006742]
[1746695070038,0.37717552,99656.0,99655.0,0.2006742]
[1746695070333,0.37917552,99656.0,99655.0,0.2016742]
[1746695070717,0.37817552,99656.0,99655.0,0.2016742]
[1746695071224,0.37817552,99656.0,99655.0,0.2001742]
[1746695074037,0.179,99656.0,99655.0,0.2001742]
[1746695074227,0.001,99656.0,99655.0,0.2001742]
[1746695075832,0.001,99656.0,99655.0,0.2501742]
[1746695076533,0.001,99656.0,99655.0,0.1986742]
[1746695077334,0.001,99656.0,99655.0,0.2486742]
[1746695077529,0.001,99656.0,99655.0,0.2990182]
[1746695078522,0.001,99656.0,99655.0,0.1986742]
[1746695078727,0.03139522,99661.0,99658.0,0.0501636]
[1746695078928,0.23204602,99661.0,99660.0,0.2006522]
[1746695079333,0.23204602,99661.0,99660.0,0.2627522]
[1746695079829,0.24204602,99661.0,99660.0,0.2627522]
[1746695080734,0.24404602,99661.0,99660.0,0.2627522]
[1746695081134,0.24404602,99661.0,99660.0,0.2612522]
[1746695081427,0.24404602,99661.0,99660.0,0.2642522]
[1746695081634,0.24304602,99661.0,99660.0,0.2642522]
[1746695082130,0.24304602,99661.0,99660.0,0.2328522]
[1746695083437,0.24304602,99661.0,99660.0,0.2021522]
[1746695083627,0.24154124,99661.0,99660.0,0.2021522]
[1746695084827,0.44212124,99661.0,99660.0,0.2021522]
[1746695085931,0.44212124,99661.0,99660.0,0.2006522]
[1746695086235,0.61012124,99661.0,99660.0,0.2006522]
[1746695086540,0.61012124,99661.0,99660.0,0.1996522]
[1746695086836,0.61012124,99661.0,99660.0,0.1986522]
[1746695087136,0.60912124,99661.0,99660.0,0.1986522]
[1746695087324,0.61012124,99661.0,99660.0,0.1986522]
[1746695088439,0.60861646,99661.0,99660.0,0.1986522]
[1746695089139,0.60861646,99661.0,99660.0,0.1976522]
[1746695089336,0.60861646,99661.0,99650.0,0.01]
[1746695089544,0.2006944,99639.0,99638.0,0.00150547]
[1746695089740,0.2006944,99639.0,99630.0,0.01]
[1746695089741,0.2007106,99631.0,99630.0,0.01]
[1746695090039,0.7720906,99631.0,99630.0,0.01]
[1746695090240,1.44981046,99631.0,99630.0,0.01]
[1746695090627,1.44981046,99631.0,99630.0,0.0085]
[1746695091144,1.45081046,99631.0,99630.0,0.02327646]
[1746695091640,1.48341046,99631.0,99630.0,0.02327646]
[1746695092237,1.49101253,99631.0,99630.0,0.02627646]
[1746695092540,1.48129267,99631.0,99630.0,0.011]
[1746695092741,0.7116,99631.0,99630.0,0.2117126]
[1746695093129,0.5436,99631.0,99630.0,0.2117126]
[1746695093333,0.54209469,99631.0,99630.0,0.2117126]
[1746695093534,0.54058991,99631.0,99630.0,0.2420126]
[1746695094441,0.94188051,99631.0,99630.0,0.011]
[1746695094641,1.30268051,99631.0,99630.0,0.2117126]
[1746695095342,1.33318051,99631.0,99630.0,0.2117126]
[1746695095939,1.33318051,99631.0,99630.0,0.011]
[1746695096140,1.50118051,99631.0,99630.0,0.011]
[1746695096342,1.50118051,99631.0,99630.0,0.0095]
[1746695096741,1.50118051,99631.0,99630.0,0.008]
[1746695098944,1.4996752,99631.0,99630.0,0.008]
[1746695099135,1.49817042,99631.0,99630.0,0.008]
[1746695101652,1.49817042,99631.0,99630.0,0.0065]
[1746695101848,1.49817042,99631.0,99630.0,0.02022797]
[1746695104048,1.49666511,99631.0,99630.0,0.02022797]
[1746695104551,1.49516033,99631.0,99630.0,0.02022797]
[1746695104860,1.49516033,99631.0,99630.0,0.005]
[1746695105051,1.49516033,99631.0,99630.0,0.002]
[1746695105237,1.49616033,99631.0,99630.0,0.002]
[1746695105653,1.49716033,99631.0,99630.0,0.001]
[1746695106145,1.49516033,99631.0,99630.0,0.001]
[1746695106347,1.49716033,99631.0,99630.0,0.001]
[1746695106745,0.2007186,99627.0,99626.0,0.2318196]
[1746695107052,0.4112986,99627.0,99626.0,0.2303196]
[1746695107247,0.4112986,99627.0,99626.0,0.0296]